[Event "Slovakia Open 2022"]
[Site "Bratislava"]
[Date "2022.09.30"]
[Round "3.22"]
[White "Migalko, Dmitriy"]
[Black "Chlpek, Daniel"]
[Result "0-1"]
[ECO "B52"]
[WhiteElo "1528"]
[BlackElo "2020"]
[Annotator "TA"]
[PlyCount "68"]
[EventDate "2022.09.30"]
[EventCountry "SVK"]
[SourceTitle "playchess.com"]
[Source "ChessBase"]
[SourceQuality "1"]
[TimeControl "2700+10"]

{[%evp 10,68,4,7,16,15,18,20,31,-6,20,0,0,-8,-6,-44,-8,-41,-41,-38,-16,-17,-20,-31,-20,-43,-31,-25,-12,-48,-45,-122,-119,-119,-124,-117,-123,-123,-70,-90,-47,-176,-164,-558,-327,-296,-294,-308,-200,-368,-206,-1387,-1387,-1342,-1266,-29986,-29987,-29987,-29988,-29988,-29989]} 1. e4 {[%emt 0:00:06]} c5 {[%emt 0:00:04]} 2. Nf3 {[%emt 0:00:02]} d6 {[%emt 0:00:08]} 3. Nc3 {[%emt 0:00:04]} Nf6 {[%emt 0:00:19]} 4. Bb5+ {[%emt 0:00:04]} Bd7 {[%emt 0:00:06]} 5. Bxd7+ {[%emt 0:00:03]} Nbxd7 {[%emt 0:00:03]} 6. O-O {[%emt 0:00:03]} g6 {[%emt 0:01:02] B52: Sicilian: Moscow Variation with 3...Bd7.} 7. d3 {[%emt 0:00:02]} Bg7 {[%emt 0:00:10]} 8. Bg5 {[%emt 0:00:03]} h6 {[%emt 0:00:48] The position is equal.} 9. Bh4 {[%emt 0:00:08]} O-O {[%emt 0:01:10]} 10. Re1 {[%emt 0:00:03] [#]} Qb6 $146 {[%emt 0:02:40]} ({Predecessor:} 10... g5 11. Bg3 Nh5 12. Qd2 Nxg3 13. fxg3 Ne5 14. Rad1 Nc6 15. b3 Qa5 16. Nd5 Qxd2 17. Nxd2 {0-1 (57) Roehrer,S (1212)-Burdot,Y (1195) Mureck 2019}) 11. Rb1 {[%emt 0:00:05]} e6 {[%emt 0:01:35]} 12. e5 {[%emt 0:00:14]} dxe5 {[%emt 0:03:07]} 13. Nxe5 {[%emt 0:00:03]} Nxe5 {[%emt 0:00:13]} 14. Rxe5 {[%emt 0:00:01]} Qb4 {[%emt 0:06:50]} 15. Bxf6 {[%emt 0:00:49]} Bxf6 {[%emt 0:00:07]} 16. a3 $1 {[%emt 0:00:11]} Qa5 {[%emt 0:01:19]} 17. Re2 {[%emt 0:01:04]} Rad8 {[%emt 0:02:36]} 18. Ne4 {[%emt 0:00:06]} Bg7 {[%emt 0:00:08]} 19. c3 {[%emt 0:00:09]} c4 {[%emt 0:04:57]} 20. d4 {[%emt 0:00:01]} (20. Rd2 $1 $15) 20... e5 $17 {[%emt 0:00:07][%cal Re5d4]} 21. Rd2 {[%emt 0:00:38]} exd4 {[%emt 0:00:07]} 22. cxd4 {[%emt 0:00:03]} Rfe8 {[%emt 0:00:43]} 23. Nc3 {[%emt 0:00:12]} Qf5 {[%emt 0:00:39]} (23... Rd6 $17 24. Ne2 Rde6) 24. g3 {[%emt 0:01:00]} h5 {[%emt 0:00:45] Black is much more active. The white rooks are badly placed.} 25. h4 {[%emt 0:00:24] This move loses the game for White.} ({White should play} 25. d5 $15) 25... Bh6 $1 $19 {[%emt 0:01:30]} 26. f4 $2 {[%emt 0:00:35]} (26. Rc2 {is a better chance.}) 26... Bg7 {[%emt 0:02:11]} 27. Kh2 {[%emt 0:00:10]} Re3 {[%emt 0:00:52]} 28. Qg1 {[%emt 0:00:06]} Rde8 {[%emt 0:00:19][%cal Og7d4] aiming for ...Bxd4!} ({Not} 28... Bxd4 29. Rxd4 $1 {[%mdl 512]} Qc2+ 30. Kh1 Rxd4 31. Qxe3 $16) 29. Rbd1 $2 {[%emt 0:00:24]} (29. Qf1) 29... b5 {[%emt 0:00:30]} (29... Bf6 $142 {[%cal Of6h4] ...Bxh4! is the strong threat.} 30. Rg2 {[#]} Bxh4 $1 {[%mdl 512]}) 30. d5 $2 {[%emt 0:00:04]} (30. Qg2) 30... Bxc3 {[%emt 0:00:20]} 31. bxc3 {[%emt 0:00:10]} Re2+ {[%emt 0:00:11]} 32. Rxe2 {[%emt 0:00:18]} Rxe2+ {[%emt 0:00:07] Black mates.} 33. Qg2 {[%emt 0:00:02]} Rxg2+ {[%emt 0:00:10]} 34. Kxg2 {[%emt 0:00:02]} Qc2+ {[%emt 0:00:00] Weighted Error Value: White=0.94/Black=0.26 (precise)} 0-1

[Event "Slovakia Open 2022"]
[Site "Bratislava"]
[Date "2022.09.30"]
[Round "3.23"]
[White "Rosol, Alexander"]
[Black "Babula, Matej"]
[Result "1/2-1/2"]
[ECO "B20"]
[WhiteElo "2041"]
[BlackElo "1864"]
[Annotator "TA"]
[PlyCount "68"]
[EventDate "2022.09.30"]
[EventCountry "SVK"]
[SourceTitle "playchess.com"]
[Source "ChessBase"]
[SourceQuality "1"]
[TimeControl "2700+10"]

{[%evp 9,68,-49,-58,-67,-52,-43,-21,-23,-38,-46,-55,-45,-37,-38,-31,-31,-31,-33,-20,-24,-40,-32,-14,-41,-42,-167,-45,-124,8,0,0,-37,-33,-103,-81,-129,-114,-145,-160,-170,-150,-162,-81,-337,-114,-97,-46,-93,-71,-60,-47,-93,0,-66,-1,-80,-81,-87,-55,-83,-41]} 1. e4 {[%emt 0:00:07]} c5 {[%emt 0:00:03]} 2. b4 {[%emt 0:00:08]} cxb4 {[%emt 0:00:08]} 3. a3 {[%emt 0:00:03]} e5 {[%emt 0:00:21]} 4. Nf3 {[%emt 0:00:18]} Nc6 {[%emt 0:00:27]} 5. axb4 {[%emt 0:00:06]} Bxb4 {[%emt 0:01:00]} 6. c3 {[%emt 0:00:03] B20: Sicilian: Unusual White 2nd moves.} Be7 {[%emt 0:02:01]} 7. d4 {[%emt 0:00:08]} d6 {[%emt 0:01:04]} 8. Bb5 {[%emt 0:01:20] The position is equal.} Bd7 {[%emt 0:01:35]} 9. O-O {[%emt 0:00:37]} Nf6 {[%emt 0:00:37]} 10. d5 {[%emt 0:00:58]} Nb8 {[%emt 0:00:14]} 11. Bd3 {[%emt 0:00:12]} O-O {[%emt 0:00:30]} 12. Ba3 {[%emt 0:00:07]} Bg4 {[%emt 0:01:45]} 13. Nbd2 {[%emt 0:00:14]} Nbd7 {[%emt 0:01:29]} 14. h3 {[%emt 0:00:43]} Bh5 {[%emt 0:00:22]} 15. Qb3 {[%emt 0:01:03] [#]} b6 $146 {[%emt 0:00:44]} ({Predecessor:} 15... Qc7 16. Nh4 Bg6 17. Nxg6 hxg6 18. Nc4 Rfc8 19. Rfe1 a6 20. Bb4 Rab8 21. Na5 Nc5 22. Bxc5 Qxc5 {½-½ (49) Hejsek,L (1747)-Novotny,M (1847) Kouty nad Desnou 2017}) 16. Rfb1 {[%emt 0:01:36]} Bg6 {[%emt 0:02:03]} 17. Qa4 {[%emt 0:03:00]} (17. g3 $15) 17... Qc7 {[%emt 0:01:10]} (17... Nxd5 $1 $19 18. Re1 a6) 18. Bb5 {[%emt 0:01:46] [#]} (18. Qc6 $15 Rfc8 19. Qxc7 Rxc7 20. c4) 18... Nc5 {[%emt 0:06:10]} (18... a6 $1 $17 {[%cal Ra6b5]} 19. Bc6 Ra7) 19. Bxc5 $11 {[%emt 0:00:08]} bxc5 {[%emt 0:00:03]} 20. Ne1 {[%emt 0:03:52]} a5 {[%emt 0:05:25]} 21. f3 {[%emt 0:00:43] [#]} ({White should try} 21. Bc6 $15 Ra7 22. Nd3) 21... Nh5 $1 $17 {[%emt 0:01:32]} 22. Nd3 {[%emt 0:00:19]} (22. g4 $142 Nf4 23. Bf1) 22... f5 {[%emt 0:00:49]} 23. Bc6 {[%emt 0:01:21] Black must now prevent Rb7.} Rab8 {[%emt 0:00:20] Against Rb7} 24. exf5 {[%emt 0:00:52]} Bxf5 {[%emt 0:00:26]} 25. Ne4 {[%emt 0:00:05]} Bxe4 {[%emt 0:00:41]} ({Black should play} 25... Rxb1+ $19 26. Rxb1 Qd8) 26. fxe4 $4 {[%emt 0:00:35][%mdl 8192]} (26. Qxe4 $17 {only move.} Bg5 27. Kh2) 26... Nf4 $2 {[%emt 0:01:45]} (26... c4 $19 {is more deadly.} 27. Rxb8 Qxb8 28. Qxc4 Qa7+ 29. Kh2 (29. Kh1 $2 Bh4 $19) 29... Bg5) 27. Nxf4 {[%emt 0:00:15]} Rxf4 {[%emt 0:00:22]} (27... exf4 $17 28. Bd7 Kh8) 28. Rf1 {[%emt 0:00:39]} (28. Rb5 $15 {feels stronger.}) 28... Rxf1+ {[%emt 0:01:18]} 29. Rxf1 {[%emt 0:00:07]} Rf8 {[%emt 0:00:23]} 30. Rb1 {[%emt 0:00:43]} (30. g3 $15 {might be stronger.}) 30... Rb8 {[%emt 0:00:50]} (30... Qd8 $17 31. Qd1 Bg5) 31. Ra1 {[%emt 0:00:04]} ({Much worse is} 31. Rxb8+ Qxb8 32. Qb5 Qa7 $15) (31. Rf1 $1 $11) 31... h6 {[%emt 0:02:23]} (31... Qb6 $15) 32. Be8 {[%emt 0:00:31]} (32. Qxa5 $11 Rb1+ 33. Kf2 (33. Kh2 Qxa5 34. Rxa5 Kf7 $15) 33... Bh4+ 34. Ke3 Re1+ 35. Kd2) 32... Kh7 {[%emt 0:00:54]} 33. Rf1 {[%emt 0:00:22]} Bf6 {[%emt 0:00:27]} 34. Bb5 {[%emt 0:00:39]} Rf8 {[%emt 0:01:23] White happily takes the draw.  Weighted Error Value: White=0.40/Black=0.34} 1/2-1/2

[Event "Slovakia Open 2022"]
[Site "Bratislava"]
[Date "2022.09.30"]
[Round "3.24"]
[White "Mandak, Miroslav"]
[Black "Pasti, Zsombor"]
[Result "1-0"]
[ECO "C33"]
[WhiteElo "1864"]
[BlackElo "1884"]
[Annotator "NA RC COMBH"]
[PlyCount "47"]
[EventDate "2022.09.30"]
[EventCountry "SVK"]
[SourceTitle "playchess.com"]
[Source "ChessBase"]
[SourceQuality "1"]
[TimeControl "2700+10"]

1. e4 {[%emt 0:00:10]} e5 {[%emt 0:00:01]} 2. f4 {[%emt 0:00:03]} exf4 {[%emt 0:00:02]} 3. Bc4 {[%emt 0:00:02]} g5 {[%emt 0:00:04]} 4. Nc3 {[%emt 0:00:33]} Bg7 {[%emt 0:00:02]} 5. d3 {[%emt 0:00:22]} c6 {[%emt 0:00:01]} 6. h4 {[%emt 0:00:15]} h6 {[%emt 0:00:02]} 7. hxg5 {[%emt 0:00:10]} hxg5 {[%emt 0:00:03]} 8. Rxh8 {[%emt 0:00:25]} Bxh8 {[%emt 0:00:03]} 9. Qh5 {[%emt 0:00:30]} Qf6 {[%emt 0:00:03]} 10. Bxf7+ {[%emt 0:01:16]} Qxf7 {[%emt 0:00:05]} 11. Qxh8 {[%emt 0:00:03]} d6 {[%emt 0:00:23]} 12. Nf3 {[%emt 0:02:38]} Qg6 {[%emt 0:00:04]} 13. Bd2 {[%emt 0:01:11]} Bg4 {[%emt 0:00:15]} 14. O-O-O {[%emt 0:02:01]} Nd7 {[%emt 0:00:02]} 15. Rh1 {[%emt 0:00:58]} O-O-O {[%emt 0:00:08]} 16. Qd4 {[%emt 0:02:08]} Bxf3 {[%emt 0:00:40]} 17. gxf3 {[%emt 0:00:05]} Ne5 {[%emt 0:00:03]} 18. Qf2 {[%emt 0:00:55]} Nf6 {[%emt 0:00:30]} 19. Qg2 {[%emt 0:00:19]} Nh5 {[%emt 0:01:11]} 20. Qh3+ {[%emt 0:02:11]} g4 {[%emt 0:00:55]} 21. Qxh5 {[%emt 0:00:46]} Qxh5 {[%emt 0:00:04]} 22. Rxh5 {[%emt 0:00:04]} g3 {[%emt 0:00:08]} 23. Bxf4 {[%emt 0:03:47]} g2 {[%emt 0:00:06]} 24. Rg5 {[%emt 0:01:37]} 1-0

[Event "Slovakia Open 2022"]
[Site "Bratislava"]
[Date "2022.09.30"]
[Round "3.25"]
[White "Merva Max"]
[Black "Hnatyshyn, Anastasiia"]
[Result "0-1"]
[ECO "B30"]
[WhiteElo "1000"]
[BlackElo "2087"]
[Annotator "TA"]
[PlyCount "42"]
[EventDate "2022.09.30"]
[EventCountry "SVK"]
[SourceTitle "playchess.com"]
[Source "ChessBase"]
[SourceQuality "1"]
[TimeControl "2700+10"]

{[%evp 9,42,-43,-2,-72,-58,-466,-470,-595,-603,-955,-959,-1020,-1012,-1293,-1295,-1278,-1288,-1777,-1777,-1729,-1758,-1850,-1840,-1855,-1868,-1919,-1905,-2866,-2233,-29988,-29989,-29995,-29992,-29992,-29991]} 1. e4 {[%emt 0:00:13]} c5 {[%emt 0:00:02]} 2. Nf3 {[%emt 0:00:03]} Nc6 {[%emt 0:00:03]} 3. Nc3 {[%emt 0:00:03]} g6 {[%emt 0:00:08]} 4. Bb5 {[%emt 0:00:03]} Bg7 {[%emt 0:00:06]} 5. Na4 {[%emt 0:00:25]} Qa5 {[%emt 0:00:45] [#]} 6. c4 $146 {[%emt 0:00:18] B30: Sicilian: 2...Nc6 3 Bb5, lines without ...g6.} (6. Bxc6 $11 {remains equal.} bxc6 7. Nc3) ({Predecessor:} 6. Bxc6 bxc6 7. Nc3 Nf6 8. O-O Ba6 9. Re1 O-O 10. d3 Bb7 11. Ne5 d6 12. Nc4 h5 13. Nxa5 {1-0 (39) Lucutar,S (1001)-Kiss,A (1022) Calimanesti 2013}) 6... Nd4 {[%emt 0:01:33] Black is more active.} 7. Nh4 {[%emt 0:00:37][%mdl 8192] [#]} ({White should play} 7. Nc3 $15) 7... a6 $19 {[%emt 0:00:15]} ({Worse is} 7... Nxb5 8. cxb5 d5 9. exd5 $17) 8. O-O {[%emt 0:00:42] Black is clearly winning.} axb5 {[%emt 0:00:03]} 9. cxb5 {[%emt 0:00:02]} Qxa4 {[%emt 0:00:04]} 10. b3 {[%emt 0:00:08] [#]} Nxb3 $1 {[%emt 0:00:10]} 11. Qxb3 {[%emt 0:00:05]} (11. Rb1 Nxc1) 11... Qxb3 {[%emt 0:00:03]} 12. axb3 {[%emt 0:00:04]} Rxa1 {[%emt 0:00:03]} 13. Bb2 {[%emt 0:00:04]} Bxb2 {[%emt 0:00:05]} 14. Rxa1 {[%emt 0:00:15]} Bxa1 {[%emt 0:00:03]} 15. d3 {[%emt 0:00:06]} d5 {[%emt 0:00:05]} 16. exd5 {[%emt 0:00:05]} Nf6 {[%emt 0:00:04]} 17. Nf3 {[%emt 0:00:24]} O-O {[%emt 0:00:05]} 18. Ne5 {[%emt 0:00:07]} Rd8 {[%emt 0:00:06]} 19. g3 {[%emt 0:00:35]} Bxe5 {[%emt 0:00:10] Black mates.} 20. d6 {[%emt 0:00:10]} Rxd6 {[%emt 0:00:05]} 21. f4 {[%emt 0:00:06]} Bd4+ {[%emt 0:00:03] White got outplayed after the opening.  Weighted Error Value: White=1.80/Black=0.36} 0-1

[Event "Slovakia Open 2022"]
[Site "Bratislava"]
[Date "2022.09.30"]
[Round "3.26"]
[White "Krajnak, Robert"]
[Black "Hasala, Richard"]
[Result "1/2-1/2"]
[ECO "A28"]
[WhiteElo "1931"]
[BlackElo "1537"]
[Annotator "TA"]
[PlyCount "82"]
[EventDate "2022.09.30"]
[EventCountry "SVK"]
[SourceTitle "playchess.com"]
[Source "ChessBase"]
[SourceQuality "1"]
[TimeControl "2700+10"]

{[%evp 9,82,6,19,29,27,12,49,0,0,0,11,-7,13,19,200,-26,-28,-27,-37,-35,-31,-55,-2,-37,0,0,16,16,27,-29,-16,-26,-44,-37,-25,-54,-64,-56,-44,-51,-50,-49,-59,-52,0,-69,-20,-22,0,0,0,-27,0,-89,-81,-78,-98,-158,-153,-159,-129,-929,-155,-1086,-325,-308,-311,-239,0,-112,-112,-408,-410,-400,-383]} 1. c4 {[%emt 0:02:53]} e5 {[%emt 0:00:09]} 2. d3 {[%emt 0:00:00]} Nf6 {[%emt 0:00:00]} 3. Nf3 {[%emt 0:00:00]} Nc6 {[%emt 0:00:07]} 4. Nc3 {[%emt 0:00:06]} d6 {[%emt 0:00:02]} 5. g3 {[%emt 0:00:08]} Bg4 {[%emt 0:00:12]} 6. Bg2 {[%emt 0:00:02] A28: English Opening: Four Knights Variation.} Be7 {[%emt 0:00:03]} 7. Rb1 {[%emt 0:00:09]} Qd7 {[%emt 0:00:53] [#]} 8. h4 $146 {[%emt 0:00:07]} (8. h3 $14 {is more appropriate.} Be6 9. Ng5) ({Predecessor:} 8. b4 Bh3 9. O-O O-O 10. a4 Rfe8 11. d4 Bxg2 12. Kxg2 e4 13. Ng5 Qf5 14. f4 {0-1 (43) Arroyo Fraile,M (1530)-Vinas Lopez,C (1903) Madrid 2016}) 8... O-O {[%emt 0:00:30]} 9. b4 {[%emt 0:00:43]} Rab8 {[%emt 0:00:23]} 10. Nd5 {[%emt 0:01:47]} Nxd5 {[%emt 0:00:24]} 11. cxd5 {[%emt 0:00:08]} Nd4 {[%emt 0:00:10] [#]} (11... Nd8 $11 {and Black stays safe.}) 12. e3 $2 {[%emt 0:00:18]} (12. Nxd4 $18 {Black must now prevent Nc2.} exd4 13. f3) 12... Nxf3+ $11 {[%emt 0:01:01]} 13. Bxf3 {[%emt 0:00:03]} Bxf3 {[%emt 0:00:11]} 14. Qxf3 {[%emt 0:00:03]} Qb5 {[%emt 0:00:06]} 15. Rb3 {[%emt 0:00:19]} Qa4 {[%emt 0:00:43]} (15... Rbc8 $15) 16. Qe2 {[%emt 0:00:07]} a6 {[%emt 0:00:15]} (16... a5 $5 {[%cal Ra5b4]}) 17. O-O {[%emt 0:00:14]} Bf6 {[%emt 0:00:05]} 18. e4 {[%emt 0:00:09]} c6 {[%emt 0:00:32]} 19. Be3 {[%emt 0:04:46]} (19. dxc6 $142 Qxc6 20. Be3) 19... cxd5 {[%emt 0:00:15]} 20. exd5 {[%emt 0:00:02]} Qb5 {[%emt 0:00:21]} 21. Qf3 {[%emt 0:00:33]} Rbc8 {[%emt 0:00:39]} 22. Rc1 {[%emt 0:01:12] Prevents Rc2.} Rxc1+ {[%emt 0:01:25]} 23. Bxc1 {[%emt 0:00:51]} Rc8 {[%emt 0:00:03]} 24. Bg5 {[%emt 0:04:15]} Bxg5 {[%emt 0:00:40]} 25. hxg5 $15 {[%emt 0:00:02][%mdl 4096] Endgame KQR-KQR} Rc2 {[%emt 0:00:51]} 26. Qd1 {[%emt 0:04:42]} Rc8 {[%emt 0:01:11]} 27. Qf3 {[%emt 0:00:33]} Qd7 {[%emt 0:04:58]} (27... Rc7 $15) 28. Kg2 $11 {[%emt 0:02:15]} Qe7 {[%emt 0:01:55]} 29. Qg4 {[%emt 0:00:38]} Rc2 {[%emt 0:00:45]} 30. a3 {[%emt 0:01:23]} f6 {[%emt 0:00:07][%cal Bf7f6,Bf6f5][%mdl 32]} 31. g6 {[%emt 0:00:28] Inhibits Qf7.} (31. d4 $11 {remains equal.}) 31... hxg6 $17 {[%emt 0:00:07]} 32. Qxg6 {[%emt 0:00:03]} Qf7 {[%emt 0:00:26]} 33. Qe4 {[%emt 0:00:12]} (33. Qxf7+ $142 Kxf7 34. Kf3) 33... f5 {[%emt 0:00:10]} 34. Qf3 {[%emt 0:00:04]} Rc1 {[%emt 0:04:08] Prevents Rb1.} 35. b5 $2 {[%emt 0:00:59][%mdl 8192]} (35. d4 $17) 35... a5 $2 {[%emt 0:00:34]} (35... g5 $19 {and Black stays clearly on top.} 36. Qe3 Qxd5+ 37. f3 Rc2+ 38. Kg1 f4) 36. b6 $2 {[%emt 0:00:02]} (36. Rb2 $17) 36... Qg6 $2 {[%emt 0:00:18]} (36... g6 {( -> ...Qh7)} 37. g4 Qh7) 37. Qe3 $19 {[%emt 0:02:22]} Ra1 {[%emt 0:01:03]} 38. Rc3 {[%emt 0:00:52]} Qh5 $2 $40 {[%emt 0:00:55][%mdl 128] Black has some attack.} (38... Qg4 $19 {...Qd1 is the strong threat.} 39. Rc8+ Kf7) 39. Rc1 {[%emt 0:00:26]} (39. Rc8+ $1 $11 Kh7 40. Rc1 Rxc1 41. Qxc1) 39... Rxa3 $17 {[%emt 0:01:10]} 40. Rc7 $2 {[%emt 0:00:37][%mdl 8192]} (40. Rh1 $17 Qf7 41. Qg5 Qxd5+ 42. Kh2) 40... e4 $19 {[%emt 0:03:11] [#] Strongly threatening ...Ra1.} ({Inferior is} 40... Ra1 41. Rc8+ Kh7 42. Rc1 Rxc1 43. Qxc1 $19) 41. Qd4 {[%emt 0:00:50][%csl Gc7][%cal Rd4g7] Inhibits Ra1.} ({Don't blunder} 41. Rxb7 $2 Ra1 42. Rxg7+ Kf8 $19) 41... Qf3+ {[%emt 0:00:49][%mdl 32768] Weighted Error Value: White=0.80/Black=0.61. An unexpected result.} 1/2-1/2

[Event "Slovakia Open 2022"]
[Site "Bratislava"]
[Date "2022.09.30"]
[Round "3.27"]
[White "Nikpour Aryabod"]
[Black "Mizicka, Matus"]
[Result "0-1"]
[ECO "B23"]
[WhiteElo "1000"]
[BlackElo "1975"]
[Annotator "TA"]
[PlyCount "96"]
[EventDate "2022.09.30"]
[EventCountry "SVK"]
[SourceTitle "playchess.com"]
[Source "ChessBase"]
[SourceQuality "1"]
[TimeControl "2700+10"]

{[%evp 9,96,-36,0,0,35,0,0,0,0,0,0,-6,27,28,212,68,132,0,0,-77,-86,-297,-183,-212,-201,-211,-175,-157,-22,-30,-41,-55,-60,-51,-24,-47,-42,-61,-54,-49,0,-81,-81,-121,-22,-110,-69,-75,-64,-80,-90,-142,-135,-143,-115,-133,-93,-98,-110,-179,-176,-172,-162,-157,-1,-340,-338,-701,0,0,53,-191,613,-171,550,0,757,751,657,325,316,318,1191,235,29990,29991,29999,29999,29999]} 1. e4 {[%emt 0:00:04]} c5 {[%emt 0:04:29]} 2. Nc3 {[%emt 0:00:12]} e6 {[%emt 0:01:22]} 3. f4 {[%emt 0:00:08]} a6 {[%emt 0:01:42]} 4. a4 {[%emt 0:01:27]} Nc6 {[%emt 0:00:48]} 5. Bc4 {[%emt 0:01:40]} Qc7 {[%emt 0:01:28]} 6. d3 {[%emt 0:01:10] B23: Closed Sicilian: Lines without g3.} Be7 {[%emt 0:02:10]} 7. Nf3 {[%emt 0:00:24]} d6 {[%emt 0:02:26]} 8. O-O {[%emt 0:00:18] The position is equal.} Nf6 {[%emt 0:00:53]} 9. Qe1 {[%emt 0:00:08]} O-O {[%emt 0:02:35]} 10. Qg3 {[%emt 0:00:31]} Nh5 {[%emt 0:00:55]} 11. Qh3 {[%emt 0:01:35]} g6 {[%emt 0:01:06] [#]} (11... Nf6 $1 $11 {and Black has nothing to worry.}) 12. Ng5 $146 {[%emt 0:03:01]} (12. g4 $1 $18 {[%cal Rg4h5]}) ({Predecessor:} 12. f5 exf5 13. exf5 Bxf5 14. g4 Bd7 15. Qg2 Nf6 16. g5 Nh5 17. Nd5 Qd8 18. Re1 {0-1 (32) Leszczynski,T (1676)-Gomes,C (1817) Florianopolis 2017}) 12... Qd8 {[%emt 0:05:57]} (12... Bxg5 $14 13. fxg5 Nb4) 13. Bd2 {[%emt 0:04:22]} (13. g4 $16 Bxg5 14. fxg5) 13... d5 $1 $11 {[%emt 0:02:16]} 14. Bb3 {[%emt 0:02:08]} (14. g4 $11 dxc4 15. gxh5) 14... e5 $17 {[%emt 0:04:09][%cal Be6e5,Be5f4][%mdl 32]} 15. Qf3 {[%emt 0:04:44]} (15. g4 $17 {was the only chance.} c4 16. Ba2) 15... Nd4 {[%emt 0:01:00]} (15... Nxf4 $2 16. Bxf4 exf4 17. Nh3 $17 (17. exd5 $2 Nd4 $19)) 16. Qf2 {[%emt 0:00:52]} exf4 {[%emt 0:05:17]} (16... Nxf4 17. Bxf4 exf4 18. Nf3 Nxb3 19. cxb3) 17. Nf3 {[%emt 0:01:17]} Nxb3 {[%emt 0:01:24]} 18. cxb3 {[%emt 0:00:03]} d4 {[%emt 0:00:22]} (18... dxe4 $17 19. dxe4 Be6) 19. Nd5 $11 {[%emt 0:00:33]} Be6 {[%emt 0:01:36]} 20. Nxf4 {[%emt 0:00:23]} Nxf4 {[%emt 0:00:04]} (20... Bxb3 21. Nxh5 gxh5 22. Bh6 $16) 21. Bxf4 {[%emt 0:00:01]} Bxb3 {[%emt 0:00:09]} (21... f5 $5 {[%cal Rf5e4]} 22. Bh6 fxe4 23. dxe4 (23. Bxf8 e3 $17) 23... Rf6 $17) 22. Bh6 $1 {[%emt 0:01:34]} Re8 {[%emt 0:00:02]} 23. Ne5 {[%emt 0:00:19][%cal Re5f7]} Bh4 {[%emt 0:02:19]} 24. Qf4 {[%emt 0:02:21] [#]} Qe7 {[%emt 0:03:22]} (24... Qf6 $1 $15) 25. Nf3 {[%emt 0:04:57]} (25. Nc4 $11 {keeps the balance.}) 25... Bf6 $17 {[%emt 0:00:02]} 26. Ng5 {[%emt 0:01:00]} Bg7 {[%emt 0:00:24] A strong pair of Bishops.} ({Better is} 26... Be5 $17 27. Qf2 b5) 27. Qh4 {[%emt 0:02:29]} (27. Bxg7 $11 {remains equal.} Kxg7 28. Ra3 (28. Qh4 $2 h6 $19)) 27... Qf8 {[%emt 0:00:28]} 28. Bxg7 {[%emt 0:00:33]} Qxg7 {[%emt 0:00:10]} 29. Rf2 {[%emt 0:00:41]} h6 $36 {[%emt 0:00:00][%mdl 2048] Black is really pushing.} 30. Nh3 {[%emt 0:00:28]} (30. Nf3 $142) 30... Rac8 {[%emt 0:00:21]} 31. Raf1 {[%emt 0:01:01]} Rc7 {[%emt 0:00:38]} 32. Qg3 {[%emt 0:02:12]} Ree7 {[%emt 0:00:01]} 33. Rf6 {[%emt 0:00:26]} Bxa4 {[%emt 0:00:32]} 34. e5 {[%emt 0:01:43]} (34. Qd6 $17) 34... Rc6 $1 $19 {[%emt 0:00:05]} 35. Qf3 {[%emt 0:01:19]} Bb3 {[%emt 0:00:11]} 36. Nf2 {[%emt 0:02:58]} Rce6 {[%emt 0:00:13]} (36... Rxe5 $17 37. Rxc6 bxc6 38. Qxc6 f5 39. Qxa6 Kh7) 37. Ng4 {[%emt 0:01:37][%mdl 8192]} (37. Qf4 $1 $11 {and White stays safe.}) 37... h5 {[%emt 0:00:05]} 38. Rxe6 $2 {[%emt 0:00:38]} (38. Rxf7 Rxf7 39. Qxf7+ Qxf7 40. Nh6+ Kg7 41. Nxf7) 38... Bxe6 $2 {[%emt 0:00:02]} (38... hxg4 $19 39. Qxg4 Rxe6) 39. Nf6+ $11 {[%emt 0:00:03]} Kh8 {[%emt 0:00:04]} (39... Kf8 $11) 40. Qe4 $2 {[%emt 0:00:17]} (40. Qf4 $1 $14 {was forced to keep a grip.}) 40... Rc7 $4 {[%emt 0:00:02][%mdl 8192]} (40... Qh6 $19 41. Qe1 Bf5) 41. Qe1 $4 {[%emt 0:00:11][%mdl 8192] [#]} (41. Ne8 $1 $18) 41... Bf5 $4 {[%emt 0:00:04][%mdl 8192]} (41... Qh6 $1 $19 {Hoping for ...Rc6.} 42. Ne4 Kg8) 42. Qh4 $2 {[%emt 0:00:08]} (42. Ne8 $18 Qg8 43. Nxc7) 42... Rc8 $2 {[%emt 0:00:05][%mdl 8192] [#]} ({Don't take} 42... Bxd3 43. Ne8 Qh6 44. Nxc7 Bxf1 45. Qd8+ Kh7 46. Nd5 $14) (42... Qh6 $11 43. Ng4 Bxg4 44. Qd8+ Kg7 45. Qxc7 Qe3+ 46. Rf2 (46. Kh1 Be6 $17) 46... Qe1+ 47. Rf1 Qe3+ 48. Rf2 (48. Kh1 Be6 $17) 48... Qc1+ 49. Rf1 Qe3+) 43. Rxf5 $1 $18 {[%emt 0:00:06][%mdl 512]} Qh6 {[%emt 0:00:08]} 44. Rf1 {[%emt 0:00:12]} (44. Rg5 $142 {Black must now prevent Qf4.} Kg7 45. Qf4) 44... Qe3+ {[%emt 0:00:04] [#]} 45. Qf2 $1 {[%emt 0:00:01]} Qxd3 $2 {[%emt 0:00:03]} (45... Kg7 46. Qxe3 dxe3) 46. Nxh5 $2 {[%emt 0:00:21]} Kh7 $2 {[%emt 0:00:00]} (46... Qe3 $18) 47. Qxf7+ {[%emt 0:00:12]} Kh8 {[%emt 0:00:00]} 48. Qf6+ {[%emt 0:00:10]} Kh7 {[%emt 0:00:00][%mdl 32768] Weighted Error Value: White=0.99/Black=0.80. Sensor Board Error (Ke4/e5)?} 0-1